bitfinex-derivatives/quotes_SOLF0:USTF0_20241227
["timestamp","ask_amount","ask_price","bid_price","bid_amount"]
[1735319103693,2.7091,184.83,184.81,3.5]
[1735319104796,2.7089,184.85,184.82,8.10390513]
[1735319104996,8.10390513,184.89,184.82,8.10390513]
[1735319105592,2.09311136,184.92,184.82,8.10390513]
[1735319105797,8.10390513,184.87,184.82,8.10390513]
[1735319106190,8.10390513,184.89,184.82,8.10390513]
[1735319108101,8.10390513,184.87,184.8,8.10390513]
[1735319108304,8.10390513,184.87,184.81,3.5]
[1735319108599,8.10390513,184.89,184.82,8.10390513]
[1735319108805,8.10390513,184.91,184.84,8.10390513]
[1735319109105,8.10390513,184.93,184.86,8.10390513]
[1735319109307,8.10390513,184.91,184.87,3.5]
[1735319110106,2.7083,184.89,184.87,3.5]
[1735319112011,3.5,185.05,184.88,8.10390513]
[1735319112205,8.10390513,184.97,184.9,8.10390513]
[1735319112405,4.062365,185.01,184.9,8.10390513]
[1735319112710,4.062365,185.01,184.92,8.10390513]
[1735319112905,2.7068,184.99,184.94,8.10390513]
[1735319113111,8.10390513,185.0,184.93,3.5]
[1735319113311,8.10390513,184.98,184.93,3.5]
[1735319113508,2.7071,184.97,184.93,3.5]
[1735319114509,2.7071,184.97,184.94,8.10390513]
[1735319115306,2.7068,184.99,184.96,8.10390513]
[1735319115503,2.7068,184.99,184.98,8.10390513]
[1735319115708,2.7068,184.99,184.98,11.60390513]
[1735319117613,2.7068,184.99,184.98,3.5]
[1735319118305,5.6451365,185.1,184.98,3.5]
[1735319118509,2.7066,185.01,184.98,3.5]
[1735319119804,12.64222145,185.07,184.98,3.5]
[1735319119805,2.7067,185.0,184.98,3.5]
[1735319121016,12.64222145,185.04,184.86,29.77564814]
[1735319121314,12.64222145,185.04,184.89,3.3016]
[1735319121315,12.64222145,184.98,184.89,3.3016]
[1735319121507,2.7077,184.93,184.89,3.3016]
[1735319121711,12.64222145,184.98,184.89,3.3016]
[1735319121907,1.557,185.03,184.89,1.6562]
[1735319122115,12.64222145,185.01,184.9,12.64222145]
[1735319123019,2.7072,184.96,184.9,15.35022145]
[1735319123213,12.64222145,185.01,184.9,12.64222145]
[1735319123420,2.7069,184.98,184.9,12.64222145]
[1735319123620,12.64222145,185.01,184.9,12.64222145]
[1735319124120,2.7074,184.95,184.9,12.64222145]
[1735319124317,12.64222145,185.01,184.9,12.64222145]
[1735319124518,12.64222145,185.01,184.91,3.5]
[1735319124921,2.7078,184.92,184.91,3.5]
[1735319126325,2.7078,184.92,184.89,1.6562]
[1735319126516,2.7079,184.91,184.9,3.5]
[1735319127822,1.557,185.07,184.9,16.14222145]
[1735319128016,12.64222145,185.03,184.9,16.14222145]
[1735319128213,2.7075,184.94,184.9,16.14222145]
[1735319128418,12.64222145,185.03,184.9,16.14222145]
[1735319129920,12.64222145,185.03,184.9,18.85012145]
[1735319130117,12.64222145,185.03,184.9,16.14222145]
[1735319130322,12.64222145,185.0,184.9,3.5]
[1735319130814,12.64222145,185.0,184.87,12.64222145]
[1735319131020,2.7079,184.91,184.88,3.5]
[1735319132321,12.64222145,185.0,184.88,3.5]
[1735319132322,12.64222145,185.0,184.9,12.64222145]
[1735319133014,12.64222145,185.03,184.9,12.64222145]
[1735319133718,12.64222145,185.03,184.93,12.64222145]
[1735319133924,2.707,184.98,184.94,3.5]
[1735319135327,2.707,184.98,184.93,14.26502145]
[1735319135621,12.64222145,185.08,184.96,12.64222145]
[1735319135824,12.64222145,185.08,184.97,1.645]
[1735319136724,2.7066,185.01,184.97,1.645]
[1735319138328,2.7067,185.0,184.97,1.645]
[1735319139131,2.7068,184.99,184.97,1.645]
[1735319139324,12.64222145,185.05,184.98,3.5]
[1735319139920,12.64222145,185.08,184.98,3.5]
[1735319140128,2.7066,185.0,184.99,3.5]
[1735319140334,8.09313183,185.02,184.95,8.09313183]
[1735319140531,8.09313183,185.02,184.96,3.5]
[1735319140727,2.707,184.97,184.96,3.5]
[1735319140936,0.1661,185.07,184.96,3.5]
[1735319141231,8.09313183,185.06,184.99,8.09313183]
[1735319142329,12.63985516,185.09,184.97,12.63985516]
[1735319144532,2.7065,185.01,184.97,12.63985516]
[1735319144730,12.63985516,185.09,184.97,12.63985516]
[1735319145030,3.2719,185.12,185.0,12.63985516]
[1735319145832,2.7053,185.09,185.01,3.5]
[1735319146131,3.2719,185.12,185.01,3.5]
[1735319147133,2.706,185.04,185.01,3.5]
[1735319149631,12.63985516,185.1,184.99,1.6567]
[1735319149824,12.63985516,185.1,185.02,3.5]
[1735319150025,12.63985516,185.07,184.94,12.63985516]
[1735319150228,12.63985516,185.07,184.95,3.5]
[1735319150731,2.707,184.98,184.95,3.5]
[1735319152137,2.707,184.98,184.96,3.5]
[1735319152332,2.707,184.97,184.94,12.63985516]
[1735319152540,12.63985516,185.01,184.91,15.83105516]
[1735319152734,12.63985516,185.01,184.92,3.5]
[1735319152934,2.7076,184.93,184.92,3.5]
[1735319159849,2.708,184.91,184.88,12.63985516]
[1735319160150,12.63985516,184.98,184.89,3.5]
[1735319160549,12.63985516,184.98,184.86,3.1509]
[1735319160752,12.63985516,184.98,184.87,3.5]
[1735319161055,2.7086,184.86,184.84,56.28]
[1735319161249,2.7086,184.86,184.85,3.5]
[1735319161647,2.7086,184.86,184.84,56.28]
[1735319161952,2.7088,184.85,184.84,56.28]
[1735319162150,2.7088,184.85,184.84,59.78]
[1735319162951,1.5545,184.91,184.79,12.63985516]
[1735319163150,12.63985516,184.89,184.8,3.5]
[1735319163551,2.7094,184.81,184.8,3.5]
[1735319163752,2.7094,184.81,184.77,31.39894814]
[1735319164049,12.63985516,184.89,184.8,3.5]
[1735319164256,3.1295,184.91,184.8,3.5]
[1735319165155,22.54387379,185.01,184.82,12.63985516]
[1735319165361,2.7086,184.87,184.82,12.63985516]
[1735319165746,14.25225516,184.96,184.83,1.6625]
[1735319165951,2.7087,184.86,184.83,1.6625]
[1735319166256,14.25225516,184.96,184.83,1.6625]
[1735319166653,14.25225516,184.96,184.83,3.3311]
[1735319166957,14.25225516,184.96,184.84,3.5]
[1735319166958,12.63985516,184.93,184.84,3.5]
[1735319167153,12.63985516,184.93,184.85,3.5]
[1735319167351,12.63985516,184.9,184.84,3.5]
[1735319167553,12.63985516,184.87,184.76,12.63985516]
[1735319167747,12.63985516,184.87,184.77,3.5]
[1735319168053,2.7098,184.78,184.77,3.5]
[1735319168957,12.63985516,184.87,184.77,3.5]
[1735319169163,1.6055,184.89,184.77,3.5]
[1735319169455,2.7094,184.82,184.77,3.5]
[1735319170057,2.709,184.84,184.79,12.63985516]
[1735319170458,2.709,184.84,184.8,1.5458]
[1735319170654,2.7091,184.83,184.8,3.186]
[1735319173060,1.5911,184.96,184.82,12.63985516]
[1735319173061,14.23095516,184.96,184.82,12.63985516]
[1735319173259,14.23095516,184.96,184.83,3.5]
[1735319173561,2.7085,184.88,184.83,3.5]
[1735319173755,14.23095516,184.96,184.85,12.63985516]
[1735319174457,2.7083,184.89,184.85,12.63985516]
[1735319174656,14.23095516,184.96,184.85,12.63985516]
[1735319174860,14.23095516,184.96,184.85,3.5]
[1735319174861,12.63985516,184.93,184.85,3.5]
[1735319175054,2.7086,184.86,184.85,3.5]
[1735319176065,12.63985516,184.93,184.8,3.186]
[1735319176366,12.63985516,184.87,184.8,3.5]
[1735319176752,2.7094,184.81,184.8,3.5]
[1735319179361,12.63985516,184.87,184.73,20.30895516]
[1735319179560,12.63985516,184.87,184.74,3.5]
[1735319179960,12.63985516,184.87,184.75,3.5]
[1735319180162,2.709,184.84,184.75,3.5]
[1735319180464,12.63985516,184.87,184.75,3.5]
[1735319180964,2.7099,184.78,184.75,3.5]
[1735319181262,12.63985516,184.87,184.75,3.5]
[1735319181659,2.7101,184.76,184.73,17.59845516]
[1735319181862,12.63985516,184.84,184.74,3.5]
[1735319182060,12.63985516,184.88,184.74,3.5]
[1735319182270,12.63985516,184.85,184.74,3.5]
[1735319182464,12.63985516,184.82,184.75,3.5]
[1735319183168,2.7101,184.76,184.75,3.5]
[1735319184673,12.63985516,184.82,184.74,3.5]
[1735319186078,12.63985516,184.79,184.7,5.0]
[1735319186278,12.63985516,184.79,184.71,3.5]
[1735319186672,2.7108,184.71,184.7,5.0]
[1735319186878,2.7108,184.71,184.7,8.5]
[1735319187279,12.63985516,184.79,184.7,8.5]
[1735319187480,2.7104,184.74,184.71,3.5]
[1735319188082,2.7102,184.76,184.71,16.13985516]
[1735319188580,2.7097,184.79,184.74,12.63985516]
[1735319188779,12.63985516,184.86,184.74,12.63985516]
[1735319188979,12.63985516,184.86,184.75,2.7102]
[1735319189179,2.7094,184.82,184.76,3.5]
[1735319189386,12.63985516,184.86,184.74,12.63985516]
[1735319189580,3.1675,184.88,184.77,12.63985516]
[1735319189883,2.7093,184.82,184.77,12.63985516]
[1735319191184,2.7091,184.83,184.78,2.7098]
[1735319192478,2.7088,184.85,184.8,12.63985516]
[1735319192685,2.7088,184.85,184.81,6.67]
[1735319193881,2.7089,184.84,184.81,6.67]
[1735319194085,12.63985516,184.92,184.81,9.3793]
[1735319194581,2.7086,184.86,184.81,9.3793]
[1735319194980,12.63985516,184.92,184.81,6.67]
[1735319195285,12.63985516,184.89,184.81,6.67]
[1735319195588,12.63985516,184.89,184.81,3.5]
[1735319195783,2.7092,184.82,184.81,3.5]
[1735319197285,2.7096,184.8,184.77,12.63985516]
[1735319197491,2.7096,184.8,184.78,3.5]
[1735319199389,10.78858023,184.94,184.79,3.5]
[1735319199390,12.63985516,184.86,184.79,3.5]
[1735319199991,2.7095,184.8,184.79,3.5]
[1735319201186,12.63985516,184.86,184.76,3.2273]
[1735319201391,2.7101,184.76,184.73,1.6027]
[1735319201692,2.7101,184.76,184.74,3.5]
[1735319201891,12.63985516,184.86,184.75,3.5]
[1735319201892,12.63985516,184.83,184.75,3.5]
[1735319203383,2.7099,184.77,184.75,3.5]
[1735319204394,2.7101,184.76,184.75,3.5]
[1735319204601,12.63985516,184.8,184.71,1.615]
[1735319204892,12.63985516,184.8,184.71,3.5]
[1735319205390,2.7107,184.72,184.71,3.5]
[1735319206495,12.63985516,184.8,184.7,5.0]
[1735319206795,2.7108,184.71,184.7,5.0]
[1735319206995,2.7108,184.71,184.7,8.5]
[1735319209389,12.63985516,184.8,184.7,8.5]
[1735319209896,2.7106,184.73,184.7,8.5]
[1735319210394,12.63985516,184.8,184.7,8.5]
[1735319210997,2.7105,184.74,184.7,8.5]
[1735319211498,2.7108,184.71,184.7,8.5]
[1735319211697,2.7108,184.71,184.7,5.0]
[1735319212591,12.63985516,184.77,184.7,5.0]
[1735319212794,12.63985516,184.8,184.7,5.0]
[1735319213300,2.7107,184.73,184.7,5.0]
[1735319213499,12.63985516,184.8,184.7,5.0]
[1735319213799,6.6709,184.85,184.7,5.0]
[1735319213800,12.63985516,184.77,184.7,5.0]
[1735319214294,2.7108,184.71,184.7,5.0]
[1735319214889,2.7108,184.71,184.7,8.5]
[1735319216798,2.7108,184.71,184.7,5.0]
[1735319224607,15.35065516,184.71,184.7,5.0]
[1735319224817,2.7113,184.68,184.67,3.5]
[1735319226206,2.7111,184.69,184.67,3.5]
[1735319226809,12.63985516,184.77,184.67,3.5]
[1735319226810,12.63985516,184.74,184.67,3.5]
[1735319227008,2.7113,184.68,184.67,3.5]
[1735319227507,12.63985516,184.77,184.67,3.5]
[1735319227703,12.63985516,184.8,184.67,3.5]
[1735319227901,12.63985516,184.8,184.68,3.1448]
[1735319228103,12.63985516,184.8,184.68,4.6967]
[1735319228412,2.7108,184.72,184.68,4.6967]
[1735319228613,12.63985516,184.8,184.68,4.6967]
[1735319229014,2.7109,184.71,184.68,4.6967]
[1735319233405,2.711,184.7,184.68,4.6967]
[1735319233810,2.711,184.7,184.69,3.5]
[1735319235815,12.63985516,184.8,184.69,3.5]
[1735319237115,12.63985516,184.8,184.68,17.33655516]
[1735319237116,2.7111,184.69,184.68,3.1448]
[1735319237318,2.7111,184.69,184.68,6.6448]
[1735319237504,2.7111,184.69,184.68,5.0881]
[1735319237709,2.7111,184.69,184.68,3.5]
[1735319238114,12.63985516,184.77,184.68,3.5]
[1735319238409,2.711,184.7,184.68,3.5]
[1735319239010,2.7108,184.72,184.68,3.5]
[1735319239206,12.63985516,184.8,184.68,5.0322]
[1735319239411,2.7102,184.76,184.7,12.63985516]
[1735319239718,14.27755516,184.83,184.71,1.6341]
[1735319239909,2.71,184.77,184.71,1.6341]
[1735319240113,2.71,184.77,184.71,4.3449]
[1735319240415,14.27755516,184.83,184.71,4.3449]
[1735319241213,14.27755516,184.83,184.71,1.6341]
[1735319241416,2.7103,184.75,184.71,1.6341]
[1735319241621,14.27755516,184.83,184.71,1.6341]
[1735319242119,2.7102,184.76,184.71,1.6341]
[1735319242817,14.27755516,184.83,184.71,1.6341]
[1735319243022,2.7103,184.75,184.71,1.6341]
[1735319244119,2.7101,184.77,184.71,1.6341]
[1735319245511,2.7101,184.77,184.72,2.7107]
[1735319245717,2.7101,184.77,184.73,3.5]
[1735319245911,12.63985516,184.83,184.73,3.5]
[1735319246118,2.7097,184.79,184.73,18.85025516]
[1735319246318,12.63985516,184.86,184.73,18.85025516]
[1735319246619,12.63985516,184.86,184.73,16.13985516]
[1735319246818,12.63985516,184.83,184.73,3.5]
[1735319247119,12.63985516,184.83,184.74,3.5]
[1735319247309,2.7102,184.75,184.74,3.5]
[1735319247513,12.63985516,184.83,184.74,3.5]
[1735319247813,12.63985516,184.86,184.74,3.5]
[1735319248421,2.71,184.77,184.74,3.5]
[1735319248718,12.63985516,184.86,184.74,3.5]
[1735319248918,12.63985516,184.82,184.74,3.5]
[1735319249113,2.7102,184.75,184.74,3.5]
[1735319252817,2.7096,184.8,184.74,3.5]
[1735319253022,12.63985516,184.82,184.71,1.6341]
[1735319253217,12.63985516,184.82,184.72,3.5]
[1735319253417,12.63985516,184.82,184.71,1.6341]
[1735319253620,2.7107,184.73,184.72,3.5]
[1735319253924,12.63985516,184.79,184.68,1.5322]
[1735319254224,2.711,184.7,184.69,3.5]
[1735319255021,2.7111,184.69,184.68,1.5322]
[1735319255322,12.63985516,184.76,184.62,42.29430542]
[1735319255521,2.7114,184.67,184.64,3.5]
[1735319256518,12.63985516,184.76,184.64,3.5]
[1735319256822,12.63985516,184.74,184.64,3.5]
[1735319258023,12.63985516,184.74,184.65,3.5]
[1735319258424,2.7117,184.66,184.65,3.5]
[1735319259428,12.63985516,184.74,184.62,12.63985516]
[1735319259625,2.7117,184.65,184.63,3.5]
[1735319260728,2.7119,184.64,184.63,3.5]
[1735319261027,12.63985516,184.71,184.6,56.3]
[1735319261225,12.63985516,184.68,184.6,56.3]
[1735319261425,2.7121,184.63,184.61,3.5]
[1735319261926,12.63985516,184.68,184.61,3.5]
[1735319262122,12.63985516,184.68,184.6,56.3]
[1735319262322,1.6339,184.7,184.56,1.5952]
[1735319262323,12.63985516,184.65,184.56,1.5952]
[1735319262530,12.63985516,184.59,184.54,29.65445026]
[1735319263025,2.7132,184.55,184.54,29.65445026]
[1735319264028,2.7132,184.55,184.53,59.30890054]
[1735319264029,2.7133,184.54,184.53,3.5]
[1735319264526,12.63985516,184.56,184.49,29.65445026]
[1735319264721,2.7139,184.5,184.49,29.65445026]
[1735319265524,12.63985516,184.53,184.46,3.5]
[1735319265726,2.7143,184.47,184.46,3.5]
[1735319266029,2.7143,184.47,184.34,14.77639487]
[1735319266227,2.7149,184.44,184.39,5.1667]
[1735319266426,12.63985516,184.5,184.4,3.5]
[1735319266630,12.63985516,184.47,184.41,3.5]
[1735319266822,2.7151,184.42,184.41,3.5]
[1735319268632,12.63985516,184.5,184.41,3.5]
[1735319268829,2.7148,184.44,184.41,3.5]
[1735319269031,12.63985516,184.5,184.41,3.5]
[1735319270235,2.7148,184.44,184.41,3.5]
[1735319270430,12.63985516,184.5,184.41,3.5]
[1735319270827,2.26600135,184.52,184.41,6.2152]
[1735319271233,2.26600135,184.52,184.41,16.13985516]
[1735319272142,2.7143,184.48,184.42,2.7151]
[1735319272838,12.63985516,184.55,184.44,15.35455516]
[1735319273036,12.63985516,184.55,184.44,12.63985516]
[1735319273237,4.8166,184.58,184.45,3.1566]
[1735319273238,17.45645516,184.58,184.45,3.1566]
[1735319273432,17.45645516,184.58,184.46,3.5]
[1735319273736,17.45645516,184.58,184.47,12.63985516]
[1735319274445,12.63985516,184.58,184.47,12.63985516]
[1735319274633,12.63985516,184.61,184.47,12.63985516]
[1735319274838,2.7128,184.58,184.5,12.63985516]
[1735319275142,12.63985516,184.61,184.51,3.5]
[1735319275342,2.7136,184.53,184.51,3.5]
[1735319275532,2.7136,184.53,184.47,2.7143]
[1735319275533,2.7136,184.53,184.52,3.5]
[1735319275939,2.7133,184.55,184.52,3.5]
[1735319276135,12.63985516,184.61,184.52,3.5]
[1735319276938,2.7134,184.54,184.52,3.5]
[1735319277243,12.63985516,184.61,184.52,3.5]
[1735319277441,2.7135,184.53,184.52,3.5]
[1735319277843,12.63985516,184.58,184.47,12.63985516]
[1735319278145,2.7139,184.51,184.48,3.5]
[1735319278842,2.7139,184.51,184.46,1.6705]
[1735319279044,2.7139,184.51,184.47,3.5]
[1735319279339,12.63985516,184.55,184.45,5.065]
[1735319280045,12.63985516,184.52,184.45,5.065]
[1735319280242,12.63985516,184.52,184.45,3.5]
[1735319280751,2.7145,184.46,184.45,3.5]
[1735319281645,2.7151,184.43,184.4,1.5771]
[1735319281842,12.63985516,184.49,184.38,12.63985516]
[1735319282144,12.63985516,184.49,184.39,3.5]
[1735319283344,2.7152,184.42,184.39,3.5]
[1735319283548,12.63985516,184.46,184.4,3.5]
[1735319284446,2.7152,184.41,184.4,3.5]
[1735319293153,12.63985516,184.49,184.4,3.5]
[1735319293354,12.63985516,184.52,184.4,3.5]
[1735319293657,2.715,184.43,184.4,3.5]
[1735319294449,1.5926,184.54,184.4,3.5]
[1735319294450,12.63985516,184.49,184.4,3.5]
[1735319294652,2.7152,184.41,184.4,3.5]
[1735319295759,12.63985516,184.46,184.35,15.86085516]
[1735319295954,12.63985516,184.43,184.36,3.5]
[1735319296562,2.7158,184.37,184.36,3.5]
[1735319300961,12.63985516,184.4,184.35,3.5]
[1735319301259,12.63985516,184.4,184.33,3.5]
[1735319302457,2.7163,184.34,184.33,3.5]
[1735319304261,2.7167,184.31,184.3,3.2538]
[1735319304459,2.7167,184.31,184.3,6.7538]
[1735319304764,2.7167,184.31,184.3,5.1828]
[1735319305164,2.7167,184.31,184.3,1.6828]
[1735319305363,2.7167,184.31,184.3,5.1828]
[1735319305662,2.7167,184.31,184.3,1.6828]
[1735319305863,2.7167,184.31,184.3,5.1828]
[1735319306064,2.7167,184.31,184.3,3.5]
[1735319306265,12.63985516,184.34,184.27,3.5]
[1735319307168,2.7173,184.27,184.26,1.6484]
[1735319307372,2.7173,184.27,184.26,5.1484]
[1735319311166,2.7173,184.27,184.24,1.6327]
[1735319311167,2.7175,184.26,184.24,1.6327]
[1735319311367,12.63985516,184.31,184.22,56.44]
[1735319311569,12.63985516,184.31,184.24,3.5]
[1735319312073,12.63985516,184.28,184.22,56.44]
[1735319312274,12.63985516,184.28,184.19,1.703]
[1735319312572,12.63985516,184.28,184.2,3.5]
[1735319313173,2.7175,184.26,184.17,10.04588114]
[1735319313373,12.63985516,184.28,184.18,3.5]
[1735319315474,2.7182,184.22,184.18,3.5]
[1735319316176,2.7182,184.22,184.17,2.7188]
[1735319316477,2.7182,184.21,184.18,3.5]
[1735319317973,12.63985516,184.28,184.18,3.5]
[1735319318180,12.63985516,184.31,184.18,16.13985516]
[1735319318379,12.63985516,184.31,184.19,1.5544]
[1735319318775,12.63985516,184.31,184.2,3.1149]
[1735319320071,2.7178,184.24,184.2,3.1149]
[1735319320279,12.63985516,184.28,184.2,3.1149]
[1735319320679,2.7182,184.21,184.2,3.1149]
[1735319321483,12.63985516,184.28,184.2,3.1149]
[1735319321680,2.718,184.23,184.2,3.1149]
[1735319321885,12.63985516,184.31,184.2,15.75475516]
[1735319322085,2.7175,184.26,184.21,2.7181]
[1735319322279,12.63985516,184.31,184.2,15.75475516]
[1735319322684,12.63985516,184.31,184.21,2.7182]
[1735319323387,2.7177,184.25,184.2,18.47305516]
[1735319324489,12.63985516,184.31,184.22,2.718]
[1735319324791,12.63985516,184.31,184.23,3.5]
[1735319325189,12.63985516,184.31,184.23,6.2178]
[1735319325488,1.5747,184.33,184.23,3.5]
[1735319325693,2.7173,184.28,184.23,6.2179]
[1735319325879,1.5747,184.33,184.23,3.5]
[1735319326084,12.63985516,184.31,184.23,3.5]
[1735319326480,2.7171,184.29,184.23,3.5]
[1735319326685,12.63985516,184.31,184.23,3.5]
[1735319327188,2.7177,184.25,184.23,3.5]
[1735319327490,1.5747,184.33,184.2,5.8332]
[1735319327683,2.7182,184.22,184.21,3.5]
[1735319328286,2.7182,184.22,184.2,3.1149]
[1735319328489,2.7182,184.22,184.21,3.5]
[1735319328986,12.63985516,184.28,184.16,29.30872456]
[1735319329183,2.7185,184.19,184.17,3.5]
[1735319330196,2.7185,184.19,184.14,37.78711162]
[1735319330394,2.7187,184.18,184.15,3.5]
[1735319330594,12.63985516,184.22,184.15,3.5]
[1735319330891,2.7183,184.2,184.15,3.5]
[1735319331191,12.63985516,184.22,184.15,3.5]
[1735319331394,2.7184,184.2,184.14,3.1931]
[1735319331588,12.63985516,184.22,184.14,3.1931]
[1735319331894,2.7187,184.18,184.15,3.5]
[1735319332488,12.63985516,184.22,184.15,3.5]
[1735319333097,2.7183,184.2,184.15,3.5]
[1735319333293,12.63985516,184.22,184.15,3.5]
[1735319334094,2.718,184.22,184.15,3.5]
[1735319334298,12.63985516,184.25,184.15,3.5]
[1735319334788,2.7186,184.18,184.15,3.5]
[1735319335688,12.63985516,184.25,184.15,3.5]
[1735319335896,2.7188,184.17,184.15,3.5]
[1735319336196,12.63985516,184.25,184.15,3.5]
[1735319338189,2.7186,184.18,184.15,3.5]
[1735319338795,2.7184,184.2,184.15,3.5]
[1735319338994,12.63985516,184.25,184.15,3.5]
[1735319339293,2.7185,184.19,184.15,3.5]
[1735319340902,12.63985516,184.25,184.15,3.5]
[1735319341197,2.7183,184.21,184.15,3.5]
[1735319341397,16.13985516,184.32,184.18,2.7186]
[1735319341398,12.63985516,184.32,184.18,2.7186]
[1735319341592,1.5747,184.33,184.19,12.63985516]
[1735319341789,1.5747,184.33,184.2,3.5]
[1735319341987,2.717,184.29,184.21,1.6486]
[1735319342193,12.63985516,184.32,184.21,1.6486]
[1735319343298,2.7172,184.28,184.21,1.6486]
[1735319343498,2.7172,184.28,184.22,14.33385516]
[1735319343891,2.717,184.29,184.24,2.7176]
[1735319344091,2.717,184.29,184.25,3.5]
[1735319344501,12.63985516,184.38,184.25,16.13985516]
[1735319346405,2.7164,184.34,184.28,2.7171]
[1735319346607,1.5358,184.39,184.28,12.63985516]
[1735319346905,12.63985516,184.41,184.29,1.6502]
[1735319347100,2.7163,184.34,184.3,3.5]
[1735319347610,2.7166,184.33,184.3,3.5]
[1735319347902,12.63985516,184.35,184.3,3.5]
[1735319349203,12.63985516,184.35,184.23,8.97738114]
[1735319349401,2.7174,184.26,184.24,3.5]
[1735319349707,12.63985516,184.29,184.22,3.5]
[1735319349906,12.63985516,184.26,184.22,3.5]
[1735319350100,2.7179,184.23,184.19,7.32718114]
[1735319350305,12.63985516,184.26,184.2,3.5]
[1735319350909,2.7182,184.21,184.2,3.5]
[1735319354303,2.7188,184.17,184.13,12.63985516]
[1735319354503,12.63985516,184.23,184.11,1.6705]
[1735319354704,12.63985516,184.23,184.12,3.5]
[1735319354903,2.719,184.16,184.12,3.5]
[1735319355302,12.63985516,184.25,184.12,3.5]
[1735319355710,2.7185,184.2,184.15,2.719]
[1735319356412,2.7182,184.21,184.13,12.63985516]
[1735319356606,2.7182,184.21,184.16,2.7189]
[1735319356806,2.7182,184.21,184.17,3.5]
[1735319357005,2.7184,184.2,184.17,3.5]
[1735319357207,12.63985516,184.25,184.17,3.5]
[1735319358409,2.7185,184.19,184.17,3.5]
[1735319359112,12.63985516,184.25,184.17,3.5]
[1735319359808,2.7184,184.2,184.17,3.5]
[1735319360208,12.63985516,184.28,184.17,3.5]
[1735319360409,4.9664,184.31,184.17,3.5]
[1735319360906,12.63985516,184.26,184.17,5.0399]
[1735319361108,12.63985516,184.22,184.11,15.85025516]
[1735319361309,12.63985516,184.22,184.12,3.5]
[1735319361507,2.7191,184.15,184.11,15.85025516]
[1735319361708,12.63985516,184.22,184.13,3.5]
[1735319362010,2.7191,184.15,184.13,3.5]
[1735319362511,12.63985516,184.22,184.13,3.5]
[1735319363107,12.63985516,184.22,184.13,6.2193]
[1735319363307,2.7186,184.19,184.13,6.2193]
[1735319364915,12.63985516,184.22,184.13,3.5]
[1735319365217,2.7188,184.17,184.13,3.5]
[1735319367612,2.7182,184.21,184.16,2.7189]
[1735319367917,12.63985516,184.3,184.17,12.63985516]
[1735319368117,4.9664,184.31,184.11,3.2104]
[1735319368118,2.7183,184.2,184.18,3.5]
[1735319368421,12.63985516,184.27,184.18,3.5]
[1735319369310,2.7185,184.19,184.18,3.5]
[1735319369813,2.7195,184.12,184.1,1.6504]
[1735319370017,2.7195,184.12,184.09,56.46]
[1735319370018,12.63985516,184.18,184.11,3.5]
[1735319370411,12.63985516,184.18,184.06,1.6117]
[1735319370614,12.63985516,184.15,184.07,3.5]
[1735319372806,2.7194,184.13,184.07,3.5]
[1735319373020,12.63985516,184.15,184.07,3.5]
[1735319373208,12.63985516,184.18,184.07,3.5]
[1735319373613,2.7198,184.1,184.07,3.5]
[1735319375019,2.7198,184.1,184.05,12.63985516]
[1735319375220,2.7198,184.1,184.06,3.5]
[1735319375822,2.7197,184.11,184.06,6.2204]
[1735319377018,12.63985516,184.18,184.06,3.5]
[1735319377225,2.7196,184.12,184.07,2.7202]
[1735319377619,14.99633642,184.21,184.08,15.35985516]
[1735319379223,2.7194,184.13,184.08,15.35985516]